[Event "II Duchamp Open 2018-U2200"]
[Site "Rio de Janeiro"]
[Date "2018.11.18"]
[Round "3"]
[White "Morais, Wagner Soares De"]
[Black "Bomfim, Carlos B Campos Roc"]
[Result "1-0"]
[ECO "E81"]
[WhiteElo "1826"]
[BlackElo "1920"]
[Annotator "NA RC"]
[PlyCount "69"]
[EventDate "2018.11.14"]
[EventType "swiss"]
[EventCountry "BRA"]
[SourceTitle "playchess.com"]
[Source "ChessBase"]
[SourceQuality "1"]
[TimeControl "5400+30"]

1. d4 {[%emt 0:29:36]} Nf6 {[%emt 0:29:53]} 2. c4 {[%emt 0:03:55]} d6 {[%emt 0:00:35]} 3. f3 {[%emt 0:00:43]} g6 {[%emt 0:02:03]} 4. e4 {[%emt 0:01:24]} Bg7 {[%emt 0:01:44]} 5. Nc3 {[%emt 0:00:12]} O-O {[%emt 0:00:24]} 6. Be3 {[%emt 0:00:09]} Nbd7 {[%emt 0:01:45]} 7. Qd2 {[%emt 0:00:13]} e5 {[%emt 0:03:06]} 8. Nge2 {[%emt 0:00:18]} Nb6 {[%emt 0:01:51]} 9. Nc1 {[%emt 0:01:45]} c6 {[%emt 0:01:11]} 10. Nb3 {[%emt 0:00:17]} Be6 {[%emt 0:03:15]} 11. d5 {[%emt 0:01:36]} Bd7 {[%emt 0:01:54]} 12. c5 {[%emt 0:08:11]} cxd5 {[%emt 0:00:30]} 13. exd5 {[%emt 0:03:31]} dxc5 {[%emt 0:03:25]} 14. Nxc5 {[%emt 0:07:19]} Bf5 {[%emt 0:07:29]} 15. g4 {[%emt 0:02:36]} Bc8 {[%emt 0:03:38]} 16. d6 {[%emt 0:01:50]} Nbd7 {[%emt 0:03:37]} 17. N5e4 {[%emt 0:00:19]} a6 {[%emt 0:01:55]} 18. O-O-O {[%emt 0:00:26]} b5 {[%emt 0:00:29]} 19. Bd3 {[%emt 0:01:06]} Bb7 {[%emt 0:00:29]} 20. h4 {[%emt 0:03:19]} Rc8 {[%emt 0:00:31]} 21. Kb1 {[%emt 0:00:08]} Qa5 {[%emt 0:01:03]} 22. h5 {[%emt 0:00:42]} b4 {[%emt 0:01:04]} 23. Ne2 {[%emt 0:00:13]} Nd5 {[%emt 0:01:47]} 24. Bh6 {[%emt 0:00:41]} N5f6 {[%emt 0:06:45]} 25. Bxg7 {[%emt 0:00:30]} Kxg7 {[%emt 0:00:09]} 26. hxg6 {[%emt 0:00:09]} fxg6 {[%emt 0:00:21]} 27. Qh6+ {[%emt 0:00:47]} Kf7 {[%emt 0:03:48]} 28. Ng5+ {[%emt 0:00:12]} Ke8 {[%emt 0:00:15]} 29. Qg7 {[%emt 0:00:19]} Nd5 {[%emt 0:01:40]} 30. Rxh7 {[%emt 0:02:27]} Rf6 {[%emt 0:02:37]} 31. Rh8+ {[%emt 0:00:36]} Nf8 {[%emt 0:00:12]} 32. Bxg6+ {[%emt 0:00:55]} Kd8 {[%emt 0:01:13]} 33. Rxd5 {[%emt 0:01:18]} Rc5 {[%emt 0:00:39]} 34. Qxf6+ {[%emt 0:02:45]} Kd7 {[%emt 0:00:32]} 35. Rxc5 {[%emt 0:06:33]} 1-0

[Event "II Duchamp Open 2018-U2200"]
[Site "Rio de Janeiro"]
[Date "2018.11.18"]
[Round "3"]
[White "Sampaio, Andre Luiz"]
[Black "Pimentel, Rafael Favarin G."]
[Result "1/2-1/2"]
[ECO "A80"]
[WhiteElo "1700"]
[BlackElo "1886"]
[Annotator "NA RC"]
[PlyCount "28"]
[EventDate "2018.11.14"]
[EventType "swiss"]
[EventCountry "BRA"]
[SourceTitle "playchess.com"]
[Source "ChessBase"]
[SourceQuality "1"]
[TimeControl "5400+30"]

1. d4 {[%emt 0:29:47]} f5 {[%emt 0:29:31]} 2. Nf3 {[%emt 0:00:18]} Nf6 {[%emt 0:00:04]} 3. e3 {[%emt 0:00:14]} e6 {[%emt 0:00:05]} 4. Be2 {[%emt 0:00:13]} d5 {[%emt 0:00:06]} 5. O-O {[%emt 0:00:18]} Bd6 {[%emt 0:00:02]} 6. c4 {[%emt 0:00:22]} c6 {[%emt 0:00:04]} 7. Nc3 {[%emt 0:00:16]} O-O {[%emt 0:00:05]} 8. b3 {[%emt 0:00:23]} Bd7 {[%emt 0:00:18]} 9. Bb2 {[%emt 0:00:12]} Be8 {[%emt 0:00:17]} 10. Rc1 {[%emt 0:00:17]} Nbd7 {[%emt 0:00:07]} 11. Qc2 {[%emt 0:00:16]} Rc8 {[%emt 0:00:14]} 12. Rfd1 {[%emt 0:00:13]} Qe7 {[%emt 0:00:29]} 13. h3 {[%emt 0:00:22]} Bh5 {[%emt 0:00:14]} 14. c5 {[%emt 0:00:29]} Bb8 {[%emt 0:00:05]} 1/2-1/2

[Event "II Duchamp Open 2018-U2200"]
[Site "Rio de Janeiro"]
[Date "2018.11.19"]
[Round "4"]
[White "Nascimento, Pedro Henrique Alve"]
[Black "Dos Santos, Rodrigo Mello"]
[Result "0-1"]
[ECO "A65"]
[WhiteElo "2007"]
[BlackElo "1965"]
[Annotator "NA RC"]
[PlyCount "108"]
[EventDate "2018.11.14"]
[EventType "swiss"]
[EventCountry "BRA"]
[SourceTitle "playchess.com"]
[Source "ChessBase"]
[SourceQuality "1"]
[TimeControl "5400+30"]

{[%evp 15,108,52,48,41,46,37,40,29,47,37,39,50,73,72,68,-156,-158,-174,-156,-216,-243,-256,-183,-196,-168,-183,-204,-219,-241,-236,-229,-234,-216,-238,-191,-297,-213,-236,-216,-253,-197,-296,-283,-427,-342,-447,-354,-337,-350,-376,-333,-326,-295,-434,-339,-335,-245,-232,0,-335,-362,32767,32767,32767,0,-382,32767,32767,32767,32767,-365,32767,32767,32767,32767,32767,32767,32767,32767,32767,-808,-1489,-2337,-2153,-1612,32767,32767,32767,32767,32767,32767,-29978,-29983,-29998,-29999]} 1. d4 {[%emt 0:29:32]} Nf6 {[%emt 0:29:47]} 2. c4 {[%emt 0:00:19]} c5 {[%emt 0:00:07]} 3. d5 {[%emt 0:00:06]} e6 {[%emt 0:00:04]} 4. Nc3 {[%emt 0:00:06]} exd5 {[%emt 0:00:04]} 5. cxd5 {[%emt 0:00:05]} d6 {[%emt 0:00:04]} 6. e4 {[%emt 0:00:28]} g6 {[%emt 0:00:34]} 7. Bd3 {[%emt 0:00:18]} Bg7 {[%emt 0:00:07]} 8. Nge2 {[%emt 0:00:25]} O-O {[%emt 0:00:15]} 9. O-O {[%emt 0:00:14]} a6 {[%emt 0:01:23]} 10. a4 {[%emt 0:00:07]} Re8 {[%emt 0:05:06]} 11. Ng3 {[%emt 0:05:16]} Nbd7 {[%emt 0:01:44]} 12. h3 {[%emt 0:02:05]} Qc7 {[%emt 0:09:21]} 13. Be3 {[%emt 0:00:57] LiveBook: 15 Games A65: Modern Benoni: 6 e4} b6 {[%emt 0:02:23]} (13... h5 14. Re1 Rb8 15. Qe2 h4 16. Nf1 Nh5 17. a5 Be5 18. Qg4 Bf6 19. Qe2 Be5 20. Qg4 Bf6 21. Qe2 Be5 22. Qg4 {½-½ (22) Torma,R (2499)-Colpe,M (2408) Budapest 2017}) 14. f4 {[%emt 0:00:28]} Bb7 {[%emt 0:02:23]} 15. Qf3 $2 {[%emt 0:01:35] [#]} (15. Re1 $14 {stays ahead.}) 15... Nxd5 $1 {[%emt 0:01:43]} 16. Nxd5 $146 {[%emt 0:03:57]} ({Not} 16. exd5 $2 {[#]} Rxe3 $1 {[%mdl 512]} 17. Qxe3 Bd4 $19) 16... Bxd5 {[%emt 0:00:22]} 17. Kh1 {[%emt 0:00:32]} ({Wrong is} 17. exd5 $2 Rxe3 18. Qxe3 Bd4 $19) 17... Bc6 {[%emt 0:01:04]} ({Not} 17... Bxb2 18. exd5 (18. Rab1 Bd4 $17) 18... Bxa1 19. Rxa1 $11) 18. Qf2 {[%emt 0:02:41]} b5 {[%emt 0:13:01]} 19. axb5 {[%emt 0:01:08]} axb5 {[%emt 0:00:04]} 20. Rxa8 {[%emt 0:00:38]} Rxa8 {[%emt 0:00:02]} ({Don't take} 20... Bxa8 21. f5 $17) 21. e5 {[%emt 0:00:28]} c4 {[%emt 0:07:07]} 22. Bb1 {[%emt 0:07:17]} dxe5 {[%emt 0:00:54]} 23. f5 {[%emt 0:00:11]} Rf8 {[%emt 0:09:58]} 24. Bd2 {[%emt 0:06:56]} Qd6 {[%emt 0:02:47]} 25. Qe1 {[%emt 0:04:20]} (25. Be3 $142) 25... Qd4 {[%emt 0:02:07]} 26. Bc3 {[%emt 0:04:18]} Qh4 {[%emt 0:00:25]} 27. Kh2 {[%emt 0:02:12]} Re8 {[%emt 0:01:40]} 28. fxg6 {[%emt 0:00:44]} (28. Be4 {was necessary.} Ba8 29. Bxa8 Rxa8 30. Qe4 Qxe4 31. Nxe4) 28... hxg6 {[%emt 0:00:35]} 29. Bd2 {[%emt 0:06:38]} Nf6 {[%emt 0:01:14]} 30. Qe2 {[%emt 0:01:07]} Rd8 {[%emt 0:01:57]} 31. Be1 {[%emt 0:00:24]} Qd4 {[%emt 0:02:42]} 32. Bc3 {[%emt 0:00:56]} Qd5 {[%emt 0:00:25]} 33. Bc2 {[%emt 0:00:32]} Re8 {[%emt 0:00:39]} 34. Bb4 {[%emt 0:00:40]} Qd4 {[%emt 0:00:30]} 35. Bc3 {[%emt 0:02:20]} Qh4 {[%emt 0:00:07]} 36. Be1 {[%emt 0:00:57]} Qd4 $2 {[%emt 0:00:29]} ({Black should play} 36... Qh8 $19 37. Ne4 Re6) 37. Bc3 {[%emt 0:00:24]} Qc5 $2 {[%emt 0:00:01]} 38. Qd2 $1 $11 {[%emt 0:01:05]} Qd5 {[%emt 0:00:27]} (38... Qe7 39. Bb1) 39. Qe2 {[%emt 0:00:54]} Qc5 {[%emt 0:01:40]} (39... Qe6 $19 40. Be4 Nxe4 41. Nxe4 Qe7) 40. Ne4 $2 {[%emt 0:01:52]} Nxe4 {[%emt 0:01:06]} 41. Bxe4 {[%emt 0:00:03]} Bxe4 {[%emt 0:00:24]} 42. Qxe4 {[%emt 0:00:07]} Qd6 {[%emt 0:02:11]} 43. Qb7 {[%emt 0:01:10]} e4+ {[%emt 0:00:48]} 44. Kh1 {[%emt 0:00:07]} Qe6 {[%emt 0:00:34]} 45. Bxg7 {[%emt 0:00:49]} Kxg7 {[%emt 0:00:01]} 46. Qxb5 {[%emt 0:00:26]} e3 {[%emt 0:00:30]} 47. Qb4 {[%emt 0:00:38]} Rd8 {[%emt 0:01:41]} 48. Qc3+ {[%emt 0:01:09]} Kg8 {[%emt 0:00:01]} 49. Ra1 {[%emt 0:00:28]} Qe4 {[%emt 0:01:03]} 50. Re1 {[%emt 0:01:05]} Rd2 {[%emt 0:00:26]} 51. Rg1 {[%emt 0:01:36]} Rf2 {[%emt 0:00:27]} 52. b4 {[%emt 0:03:30]} e2 {[%emt 0:00:26]} 53. Qa1 {[%emt 0:03:28] [#]} Rxg2 {[%emt 0:00:42] Promotion} 54. Qe1 {[%emt 0:01:23]} Rf2+ {[%emt 0:00:38]} 0-1

[Event "II Duchamp Open 2018-U2200"]
[Site "Rio de Janeiro"]
[Date "2018.11.19"]
[Round "4"]
[White "Pimentel, Rafael Favarin G."]
[Black "Bomfim, Carlos B Campos Roc"]
[Result "1/2-1/2"]
[ECO "E73"]
[WhiteElo "1886"]
[BlackElo "1920"]
[Annotator "NA RC"]
[PlyCount "84"]
[EventDate "2018.11.14"]
[EventType "swiss"]
[EventCountry "BRA"]
[SourceTitle "playchess.com"]
[Source "ChessBase"]
[SourceQuality "1"]
[TimeControl "5400+30"]

{[%evp 8,68,42,45,47,46,65,3,32767,32767,32767,32767,32767,32767,0,-186,37,-60,-85,-113,-143,-59,-14,-12,53,39,47,29,39,47,58,-396,-389,-402,-423,-445,-471,-1259,-1512,-1319,-857,-887,-893,-873,-906,-1227,-564,-529,-554,-714,-446,-552,-509,-497,-458,-435,-468,-451,32767,32767,32767,-541,-541]} 1. d4 {[%emt 0:34:26]} Nf6 {[%emt 0:30:14]} 2. c4 {[%emt 0:00:11]} g6 {[%emt 0:00:38]} 3. Nc3 {[%emt 0:00:07]} Bg7 {[%emt 0:00:15]} 4. e4 d6 {[%emt 0:00:22]} 5. Be2 {[%emt 0:03:19]} Nbd7 {[%emt 0:00:54]} 6. Be3 {[%emt 0:01:27] LiveBook: 7 Games E73: King's Indian: Averbakh Variation without 6...c5} (6. Bg5 c5 7. d5 b5 8. cxb5 a6 9. a4 Qa5 10. Bd2 axb5 11. Bxb5 O-O 12. Nf3 Qc7 13. O-O Bb7 14. Re1 c4 {½-½ (25) Nevednichy,V (2541)-Vajda,L (2597) Medias 2016}) 6... c5 {[%emt 0:00:56]} 7. dxc5 $146 {[%emt 0:03:50]} (7. d5 $14) ({Predecessor:} 7. Qd2 cxd4 8. Bxd4 O-O 9. Nf3 Nc5 10. Qc2 b6 11. O-O Bb7 12. e5 Be4 13. Nxe4 Nfxe4 {1-0 (35) De Wel,H (1855)-Laleman,M (1647) Limburg 2006}) 7... dxc5 {[%emt 0:00:01]} 8. Qa4 {[%emt 0:00:14]} O-O {[%emt 0:00:28]} 9. Rd1 {[%emt 0:00:04]} Qb6 {[%emt 0:01:38]} 10. b3 {[%emt 0:02:05]} Qe6 {[%emt 0:05:58]} 11. f3 $2 {[%emt 0:09:17]} (11. Nf3 $11 {and White stays safe.}) 11... a6 $2 {[%emt 0:06:51]} (11... Ng4 $1 $19 {[%cal Rg4e3]} 12. Nd5 Nxe3 13. Nxe3 f5) 12. Qa3 {[%emt 0:09:10]} ({Better is} 12. Rc1 $11) 12... Ng4 $1 {[%emt 0:08:32]} 13. Nd5 {[%emt 0:13:23]} Nxe3 {[%emt 0:01:14]} 14. Nxe3 {[%emt 0:00:01] [#]} Bc3+ {[%emt 0:03:53]} ({Black should play} 14... f5 $1 $17 15. Nd5 fxe4) 15. Kf1 $1 {[%emt 0:00:48]} f5 {[%emt 0:01:05]} ({Black should try} 15... Bg7 $11) 16. Nd5 {[%emt 0:05:32]} Be5 {[%emt 0:01:08]} 17. exf5 {[%emt 0:01:59]} Rxf5 {[%emt 0:03:51]} 18. Bd3 {[%emt 0:03:36]} Rf7 {[%emt 0:00:30]} 19. Nh3 $2 {[%emt 0:00:38] [#]} (19. h4 $11 {and White stays safe.}) 19... Rxf3+ $1 {[%emt 0:04:26]} 20. gxf3 {[%emt 0:02:01]} Qxh3+ {[%emt 0:01:36] Double Attack} 21. Kf2 {[%emt 0:00:01]} Bd4+ {[%emt 0:02:44]} 22. Ne3 {[%emt 0:00:01]} (22. Ke1 $142 e6 23. Ne7+ Kf7 24. Nxc8) 22... Ne5 {[%emt 0:01:08]} 23. Be4 {[%emt 0:04:33]} Ng4+ {[%emt 0:01:31]} (23... Bf5 $142 24. Bd5+ e6 25. Rxd4 exd5 26. Nxf5 cxd4 27. Nxd4 Re8) 24. Ke2 {[%emt 0:00:01]} Nxe3 {[%emt 0:01:27]} 25. Rxd4 {[%emt 0:00:28]} cxd4 {[%emt 0:01:12]} 26. Qxe7 {[%emt 0:00:04]} Be6 {[%emt 0:04:14]} 27. Kd3 {[%emt 0:04:35]} Bf7 {[%emt 0:01:42]} 28. Qxb7 {[%emt 0:01:28]} Rd8 {[%emt 0:01:09]} 29. Qxa6 {[%emt 0:00:18]} Qg2 {[%emt 0:01:04]} 30. Rc1 {[%emt 0:00:01]} Qb2 {[%emt 0:00:52]} 31. Qa5 {[%emt 0:00:06]} Rb8 {[%emt 0:02:14]} 32. Qd2 {[%emt 0:01:14]} Qa3 {[%emt 0:01:26]} 33. Ke2 {[%emt 0:00:18]} Qc5 {[%emt 0:00:53]} 34. Rg1 $19 {[%emt 0:01:05]} Re8 {[%emt 0:00:51]} 35. Qd3 {[%emt 0:00:32]} Re6 {[%emt 0:01:12]} 36. h4 {[%emt 0:00:18]} Qe5 {[%emt 0:00:11]} 37. Rb1 {[%emt 0:00:48]} Qh2+ {[%emt 0:00:29]} 38. Ke1 {[%emt 0:00:01]} Qg3+ {[%emt 0:00:19]} 39. Kd2 {[%emt 0:00:52]} Qf4 {[%emt 0:00:42]} 40. Ke2 {[%emt 0:00:34]} Qh2+ {[%emt 0:00:44]} 41. Ke1 {[%emt 0:00:04]} Ng2+ {[%emt 0:00:32]} 42. Kd1 {[%emt 0:00:22]} Ne3+ 1/2-1/2

[Event "II Duchamp Open 2018-U2200"]
[Site "Rio de Janeiro"]
[Date "2018.11.19"]
[Round "4"]
[White "Sampaio, Andre Luiz"]
[Black "Peixoto, Rudson Marinho"]
[Result "1-0"]
[ECO "D05"]
[WhiteElo "1700"]
[BlackElo "2007"]
[Annotator "NA RC"]
[PlyCount "33"]
[EventDate "2018.11.14"]
[EventType "swiss"]
[EventCountry "BRA"]
[SourceTitle "playchess.com"]
[Source "ChessBase"]
[SourceQuality "1"]
[TimeControl "5400+30"]

{[%evp 8,33,10,0,7,11,5,10,-3,0,0,-33,12,0,6,0,6,1,10,8,0,8,32,24,160,187,156,0]} 1. Nf3 {[%emt 0:29:36]} d5 {[%emt 0:36:55]} 2. d4 {[%emt 0:00:16]} Nf6 {[%emt 0:00:07]} 3. e3 {[%emt 0:00:39]} e6 {[%emt 0:00:09]} 4. Bd3 {[%emt 0:00:26]} Be7 {[%emt 0:00:11]} 5. O-O {[%emt 0:00:40]} O-O {[%emt 0:00:04]} 6. Nbd2 {[%emt 0:00:38]} c5 {[%emt 0:00:16]} 7. c3 {[%emt 0:00:12]} b6 {[%emt 0:00:11]} 8. Qe2 {[%emt 0:01:50]} Bb7 {[%emt 0:00:14]} 9. dxc5 {[%emt 0:02:13] LiveBook: 5 Games} Bxc5 {[%emt 0:01:29]} 10. e4 {[%emt 0:01:11] D05: Colle System with ...e6} dxe4 {[%emt 0:01:13]} 11. Nxe4 {[%emt 0:00:37]} Nxe4 {[%emt 0:01:37]} 12. Bxe4 {[%emt 0:00:14]} Bxe4 {[%emt 0:00:03]} 13. Qxe4 {[%emt 0:00:16]} Nd7 {[%emt 0:00:09]} 14. Bg5 {[%emt 0:05:01]} Be7 {[%emt 0:01:01]} (14... Nf6 15. Qe5 Qe7 16. Rad1 Rfd8 17. Qe2 Qc7 {½-½ (90) Rodrigues,E (2303)-Proudian,A (2354) Pocos de Caldas 2014}) 15. Rad1 {[%emt 0:06:48]} Qe8 $146 {[%emt 0:03:30] [#]} ({Predecessor:} 15... Bxg5 $11 16. Nxg5 Qxg5 17. Rxd7 g6 (17... Rfd8 18. Rfd1 g6 19. g3 Qf6 20. R1d3 Qg5 21. Kg2 Rf8 22. Qd4 Qa5 {½-½ (22) Nachtkamp,H (2091)-Medunova,V (2216) Seefeld 1999})) 16. Bxe7 $1 {[%emt 0:02:43]} Qxe7 {[%emt 0:00:07]} 17. Ra1 $11 (17. Qb7 $18 Rfd8 {[#]} 18. Ne5 $1 {[%mdl 576] Pin}) 1-0

[Event "II Duchamp Open 2018-U2200"]
[Site "Rio de Janeiro"]
[Date "2018.11.20"]
[Round "5"]
[White "Peixoto, Rudson Marinho"]
[Black "Pimentel, Rafael Favarin G."]
[Result "0-1"]
[ECO "B44"]
[WhiteElo "2007"]
[BlackElo "1886"]
[Annotator "NA RC"]
[PlyCount "86"]
[EventDate "2018.11.14"]
[EventType "swiss"]
[EventCountry "BRA"]
[SourceTitle "playchess.com"]
[Source "ChessBase"]
[SourceQuality "1"]
[TimeControl "5400+30"]

{[%evp 12,81,6,0,8,0,-3,-13,-8,-16,-16,-60,-74,-91,-64,-143,-115,-125,-116,-137,-47,-101,-122,-201,-172,-248,-237,-253,-254,-235,-98,-141,-138,-159,-110,-124,-116,-112,-117,-135,-30,-57,1,-16,49,48,75,84,78,18,88,42,92,76,128,80,113,21,116,120,178,123,125,121,142,139,32767,32767,32767,32767,-448,-447]} 1. e4 {[%emt 0:29:37]} c5 {[%emt 0:31:18]} 2. Nf3 {[%emt 0:00:09]} Nc6 {[%emt 0:00:20]} 3. d4 {[%emt 0:00:07]} cxd4 {[%emt 0:00:13]} 4. Nxd4 {[%emt 0:00:07]} e6 {[%emt 0:00:22]} 5. Nxc6 {[%emt 0:00:10]} bxc6 {[%emt 0:00:11]} 6. Bd3 {[%emt 0:00:07]} d5 {[%emt 0:00:09]} 7. O-O {[%emt 0:00:35]} Bd6 {[%emt 0:01:48] LiveBook: 3 Games B44: Sicilian: Taimanov: 5 Nb5} (7... Nf6 8. Nd2 Be7 9. Re1 Bb7 10. e5 Nd7 11. b3 a5 12. Qg4 g6 13. Nf3 a4 14. Bh6 Qa5 15. Bd2 Qa7 16. b4 c5 17. a3 {1-0 (59) Battulga,N (2421)-Van Wely,L (2642) Batumi 2018}) 8. Qe2 {[%emt 0:01:15]} Qc7 {[%emt 0:00:44]} 9. g3 $146 {[%emt 0:00:41]} ({Predecessor:} 9. h3 Nf6 10. Nd2 Bd7 11. Re1 e5 12. Nf3 O-O 13. Bg5 dxe4 14. Bxe4 Nxe4 15. Qxe4 {0-1 (32) Cambando,J (2077)-Chipanga,C (2048) Windhoek 2014}) 9... Ne7 {[%emt 0:03:08]} 10. exd5 {[%emt 0:00:14]} cxd5 {[%emt 0:02:53]} 11. Nc3 {[%emt 0:00:28] [#]} a6 $1 {[%emt 0:00:11]} 12. Re1 {[%emt 0:01:52]} O-O {[%emt 0:00:33]} 13. Qh5 {[%emt 0:00:30]} (13. Na4 $142) 13... Ng6 {[%emt 0:02:04]} 14. Bd2 {[%emt 0:01:59]} Rb8 {[%emt 0:00:57]} 15. Rab1 {[%emt 0:01:45]} Bb7 {[%emt 0:12:19]} (15... f5 $17 16. Ne2 e5) 16. a3 {[%emt 0:00:15]} e5 {[%emt 0:01:52]} 17. Qe2 {[%emt 0:00:27]} (17. Bf5 $17) 17... Qc6 {[%emt 0:06:16]} 18. Bf5 {[%emt 0:03:35]} (18. f3 {is a better defense.}) 18... Ne7 {[%emt 0:03:33]} ({Worse is} 18... d4 19. Be4 $11) 19. Qg4 {[%emt 0:01:28]} Nxf5 {[%emt 0:11:59]} ({Don't play} 19... d4 20. Ne4 $17) 20. Qxf5 {[%emt 0:00:09]} Bc8 {[%emt 0:00:37]} ({Much less strong is} 20... d4 21. Ne4) (20... Rfe8 $19 {is more deadly.} 21. b4 f6) 21. Qd3 {[%emt 0:02:03]} Be6 {[%emt 0:00:18]} 22. b4 {[%emt 0:00:19]} d4 {[%emt 0:02:32]} 23. Ne4 {[%emt 0:02:03]} Bc4 {[%emt 0:00:08]} 24. Qf3 {[%emt 0:00:33]} Bd5 {[%emt 0:03:54]} 25. Qd3 {[%emt 0:00:25] [#]} Bxe4 {[%emt 0:03:47]} (25... Be7 $1 $17 26. g4 f5) 26. Rxe4 {[%emt 0:00:31]} Rfc8 {[%emt 0:00:18]} 27. Rc1 {[%emt 0:01:27]} f5 {[%emt 0:03:09]} (27... Qc4 $11) 28. Ree1 {[%emt 0:00:34]} Qc4 {[%emt 0:01:12]} 29. Qxf5 {[%emt 0:00:30]} Rf8 {[%emt 0:00:17]} 30. Qd7 {[%emt 0:00:32]} (30. Qe4 $16) 30... Rbd8 {[%emt 0:00:49]} (30... Rf6 $11 {keeps the balance.}) 31. Qb7 {[%emt 0:00:23]} Rf7 {[%emt 0:00:15]} 32. Qe4 {[%emt 0:01:30]} Rdf8 {[%emt 0:00:31]} (32... Rc8 $14) 33. Re2 {[%emt 0:00:56]} Qa2 {[%emt 0:01:06]} 34. Qc6 {[%emt 0:02:48]} (34. Qd3 $16) 34... Bb8 {[%emt 0:02:23]} (34... Rf6 $1 $14) 35. Qxa6 {[%emt 0:00:32]} e4 {[%emt 0:01:18]} (35... Ra7 $16 {might work better.} 36. Qc6 Qxa3) 36. Qc6 {[%emt 0:00:39]} ({White should try} 36. a4 $18) 36... d3 {[%emt 0:00:53]} 37. Rxe4 {[%emt 0:07:26]} Rxf2 {[%emt 0:01:08]} 38. Re8 {[%emt 0:07:44]} Ba7 {[%emt 0:02:36]} 39. Be3 {[%emt 0:00:15]} Bxe3 {[%emt 0:00:18]} 40. Rxe3 {[%emt 0:01:07]} d2 {[%emt 0:00:40]} 41. Rd1 $19 {[%emt 0:00:57]} Rf1+ {[%emt 0:00:24]} 42. Rxf1 {[%emt 0:00:42]} Rxf1+ {[%emt 0:00:01]} 43. Kxf1 {[%emt 0:00:15]} d1=Q+ {[%emt 0:00:08]} 0-1

[Event "II Duchamp Open 2018-U2200"]
[Site "Rio de Janeiro"]
[Date "2018.11.20"]
[Round "5"]
[White "Bomfim, Carlos B Campos Roc"]
[Black "Nascimento, Pedro Henrique Alve"]
[Result "0-1"]
[ECO "A08"]
[WhiteElo "1920"]
[BlackElo "2007"]
[Annotator "NA RC"]
[PlyCount "54"]
[EventDate "2018.11.14"]
[EventType "swiss"]
[EventCountry "BRA"]
[SourceTitle "playchess.com"]
[Source "ChessBase"]
[SourceQuality "1"]
[TimeControl "5400+30"]

{[%evp 8,54,26,11,18,-12,-2,-18,-17,-14,-1,-59,-60,-102,-85,-149,-115,-120,-97,-77,-91,-127,-131,-159,-166,-180,-153,-155,-148,-197,-172,-202,-152,-154,-153,-165,-97,-177,-188,-187,-137,-365,-378,-371,-404,-422,-394,-479,-503]} 1. Nf3 {[%emt 0:31:49]} d5 {[%emt 0:29:42]} 2. g3 {[%emt 0:00:11]} c5 {[%emt 0:01:19]} 3. Bg2 {[%emt 0:01:25]} Nc6 {[%emt 0:00:18]} 4. d4 {[%emt 0:01:22]} e6 {[%emt 0:00:40]} 5. O-O {[%emt 0:00:39]} Nf6 {[%emt 0:00:07]} 6. c3 {[%emt 0:01:50]} (6. c4 $5) 6... Be7 {[%emt 0:00:24] LiveBook: 99 Games} 7. Be3 {[%emt 0:02:11] D02: 1 d4 d5 2 Nf3 sidelines, including 2...Nf6 3 g3 and 2...Nf6 3 Bf4} (7. a3 O-O 8. b4 b6 9. Nbd2 Bb7 10. Rb1 Qc7 11. Nb3 Ne4 12. Qc2 c4 13. Nbd2 f5 14. Nxe4 fxe4 15. Ng5 Bc8 16. f3 Qd8 17. h4 h6 {1-0 (36) Pechac,J (2431)-Navara,D (2737) Slovakia 2017}) 7... Qb6 {[%emt 0:03:41]} 8. Qc2 $146 {[%emt 0:01:27]} ({Predecessor:} 8. Qb3 O-O 9. Qxb6 axb6 10. Rd1 Bd6 11. b3 Ne4 12. a3 Ne7 13. Ng5 Nxg5 14. Bxg5 f6 {0-1 (73) Santos,S-Valverde Toresano,A UECC email 1999}) 8... O-O {[%emt 0:00:38]} 9. Nbd2 {[%emt 0:01:01]} Ng4 {[%emt 0:00:20]} 10. Ng5 {[%emt 0:06:56]} g6 {[%emt 0:00:24]} 11. Nh3 {[%emt 0:01:41]} cxd4 {[%emt 0:01:21]} 12. cxd4 {[%emt 0:03:02]} Nxd4 {[%emt 0:04:52]} 13. Bxd4 {[%emt 0:00:33]} Qxd4 {[%emt 0:00:12]} 14. e3 {[%emt 0:00:55]} Qb6 {[%emt 0:00:48]} 15. Nf4 {[%emt 0:02:10]} Bd7 {[%emt 0:01:15]} 16. Nf3 {[%emt 0:03:34]} Bf6 {[%emt 0:01:14]} 17. Rab1 {[%emt 0:00:27]} Rac8 {[%emt 0:00:54]} 18. Qd1 {[%emt 0:01:04]} Nh6 {[%emt 0:03:17]} 19. h3 {[%emt 0:00:58]} Rc7 {[%emt 0:00:42]} 20. g4 {[%emt 0:00:31]} Bg7 {[%emt 0:00:23]} 21. Re1 {[%emt 0:03:02]} Bb5 {[%emt 0:02:22]} (21... Rfc8 $19 22. Nd4 Kh8) 22. Bf1 {[%emt 0:00:55]} (22. Nd4 $17) 22... Bxf1 {[%emt 0:01:24]} 23. Kxf1 {[%emt 0:00:07]} Qa6+ {[%emt 0:00:20]} 24. Nd3 $2 {[%emt 0:01:01]} (24. Kg2 $17) 24... e5 {[%emt 0:04:20]} 25. Kg1 {[%emt 0:04:03]} e4 {[%emt 0:01:16] Double Attack} 26. Nb4 {[%emt 0:00:06]} Qa5 {[%emt 0:00:15]} 27. Nxd5 {[%emt 0:01:42]} Rd8 $19 {[%emt 0:02:25]} ({Not} 27... exf3 28. b4 $16) 0-1